fUSD/lending_fUSD_20250304
["ID","MTS","AMOUNT","RATE_DAILY","PERIOD"]
[355353382,1741076809615,-2003.29,0.00010998,2]
[355353383,1741076809645,-907.54,0.00010998,2]
[355353384,1741076809672,-2279.95,0.00010998,2]
[355353385,1741076809699,-1314.52,0.00010998,2]
[355353386,1741076809729,-599.79,0.00010998,2]
[355353387,1741076809755,-1869.09,0.00010998,2]
[355353388,1741076809781,-1557.88,0.00010998,2]
[355353389,1741076809808,-1413.89,0.00010998,2]
[355353390,1741076809834,-500.0,0.00010998,2]
[355353391,1741076809861,-1094.62,0.00010998,2]
[355353392,1741076809889,-1785.09,0.00010998,2]
[355353393,1741076809916,-500.0,0.00010998,2]
[355353394,1741076809942,-1680.99,0.00010998,2]
[355353395,1741076809968,-1206.71,0.00010998,2]
[355353396,1741076809997,-500.0,0.00010998,2]
[355353397,1741076810025,-835.48,0.00010998,2]
[355353398,1741076810052,-1518.15,0.00010998,2]
[355353399,1741076810080,-980.73,0.00010998,2]
[355353400,1741076810106,-1101.83,0.00010998,2]
[355353401,1741076810134,-500.0,0.00010998,2]
[355353402,1741076810160,-503.04603488,0.00010998,2]
[355353403,1741076810187,-1206.75,0.00010998,2]
[355353404,1741076810214,-500.0,0.00010998,2]
[355353405,1741076810243,-574.14,0.00010998,2]
[355353406,1741076810270,-500.0,0.00010998,2]
[355353407,1741076810298,-1287.47,0.00010998,2]
[355353408,1741076810328,-513.6,0.00010998,2]
[355353409,1741076810355,-1645.65,0.00010998,2]
[355353410,1741076810388,-500.0,0.00010998,2]
[355353411,1741076810415,-1378.07,0.00010998,2]
[355353412,1741076810443,-499.88227015,0.00010998,2]
[355353413,1741076810474,-1028.41,0.00010998,2]
[355353414,1741076810505,-500.0,0.00010998,2]
[355353415,1741076810533,-1987.64,0.00010998,2]
[355353416,1741076810562,-511.78867461,0.00010998,2]
[355353417,1741076810593,-1300.94,0.00010998,2]
[355353418,1741076810622,-579.12,0.00010998,2]
[355353419,1741076810660,-500.0,0.00010998,2]
[355353420,1741076810695,-1044.33,0.00010998,2]
[355353421,1741076810724,-860.44,0.00010998,2]
[355353422,1741076810753,-786.6,0.00010998,2]
[355353423,1741076810783,-3530.26,0.00010998,2]
[355353424,1741076810812,-500.0,0.00010998,2]
[355353425,1741076810839,-375.13898413,0.00010998,2]
[355353426,1741076810868,-1247.35,0.00010998,2]
[355353427,1741076811149,-736.82,0.00010998,2]
[355353428,1741076811177,-1140.3,0.00010998,2]
[355353429,1741076811206,-6790.74597505,0.00010998,2]
[355353433,1741076933130,-250.0,0.00010433,2]
[355353435,1741076933158,-1000.0,0.00010997,2]
[355353436,1741076933186,-306.30698101,0.00010997,2]
[355353438,1741076933214,-150.0,0.00010997,2]
[355353439,1741076933247,-1746.48,0.00010997,2]
[355353440,1741076933276,-3281.61,0.00010997,2]
[355353441,1741076933305,-115.47565336,0.00010997,2]
[355353442,1741076933351,-1331.98434664,0.00010997,2]
[355353443,1741076933381,-1436.67,0.00010997,2]
[355353444,1741076933415,-500.0,0.00010998,2]
[355353445,1741076933723,-904.96,0.00010998,2]
[355353446,1741076933752,-500.0,0.00010998,2]
[355353447,1741076933780,-1261.4,0.00010998,2]
[355353448,1741076933810,-297.55119038,0.00010998,2]
[355353451,1741076957562,-1085.42,0.00010997,2]
[355353452,1741076957593,-2339.31,0.00010997,2]
[355353453,1741076957624,-2213.64,0.00010997,2]
[355353454,1741076957657,-793.15,0.00010997,2]
[355353455,1741076957686,-202.44880962,0.00010998,2]
[355353456,1741076957715,-477.55258818,0.00010998,2]
[355353458,1741076957749,-143.38741182,0.00010998,2]
[355353459,1741076957779,-500.0,0.00010998,2]
[355353460,1741076957807,-500.0,0.00010998,2]
[355353461,1741076957835,-896.54,0.00010998,2]
[355353462,1741076957862,-864.67,0.00010998,2]
[355353463,1741076957892,-1134.92,0.00010998,2]
[355353464,1741076957920,-128.5462173,0.00010998,2]
[355353483,1741076982726,-2098.82,0.00010959,2]
[355353484,1741076982758,-1825.01,0.00010997,2]
[355353485,1741076982786,-2798.04,0.00010997,2]
[355353486,1741076982815,-615.24309833,0.00010997,2]
[355353487,1741076982861,-34.42690167,0.00010997,2]
[355353488,1741076982890,-1601.16,0.00010997,2]
[355353489,1741076982918,-1526.12,0.00010997,2]
[355353490,1741076982946,-385.01863594,0.00010998,2]
[355353491,1741076982973,-435.15666596,0.00010998,2]
[355353529,1741077009077,-2971.73,0.00010997,2]
[355353530,1741077009110,-874.55825814,0.00010997,2]
[355353546,1741077032412,-1345.12174186,0.00010997,2]
[355353547,1741077032422,-500.0,0.00010997,2]
[355353548,1741077032431,-2659.86,0.00010997,2]
[355353549,1741077032444,-150.0,0.00010997,2]
[355353550,1741077032454,-500.0,0.00010997,2]
[355353551,1741077032465,-574.8,0.00010997,2]
[355353552,1741077032474,-2064.33,0.00010997,2]
[355353553,1741077032486,-782.83,0.00010997,2]
[355353554,1741077032495,-1492.97,0.00010997,2]
[355353555,1741077032505,-1791.21,0.00010997,2]
[355353556,1741077032515,-500.0,0.00010997,2]
[355353557,1741077032524,-2418.83,0.00010997,2]
[355353558,1741077032534,-949.12,0.00010997,2]
[355353559,1741077032543,-500.0,0.00010997,2]
[355353560,1741077032553,-500.0,0.00010997,2]
[355353561,1741077032563,-766.95,0.00010997,2]
[355353562,1741077032572,-522.61660538,0.00010997,2]
[355353563,1741077032582,-550.0,0.00010998,2]
[355353564,1741077032591,-64.84333404,0.00010998,2]
[355353565,1741077032602,-732.28,0.00010998,2]
[355353566,1741077032611,-1181.97,0.00010998,2]
[355353567,1741077032620,-842.48,0.00010998,2]
[355353568,1741077032630,-500.0,0.00010998,2]
[355353569,1741077032639,-500.0,0.00010998,2]
[355353570,1741077032648,-657.62,0.00010998,2]
[355353571,1741077032657,-689.65,0.00010998,2]
[355353572,1741077032666,-868.24,0.00010998,2]
[355353573,1741077032675,-762.04,0.00010998,2]
[355353574,1741077032685,-581.28,0.00010998,2]
[355353575,1741077032694,-527.4,0.00010998,2]
[355353576,1741077032703,-1171.38,0.00010998,2]
[355353577,1741077032714,-1335.76,0.00010998,2]
[355353578,1741077032723,-541.37,0.00010998,2]
[355353579,1741077032733,-500.0,0.00010998,2]
[355353580,1741077032743,-924.72,0.00010998,2]
[355353581,1741077032752,-669.72,0.00010998,2]
[355353582,1741077032762,-500.0,0.00010998,2]
[355353583,1741077032771,-500.0,0.00010998,2]
[355353584,1741077032782,-1357.99,0.00010998,2]
[355353585,1741077032791,-1681.82,0.00010998,2]
[355353586,1741077032801,-852.56,0.00010998,2]
[355353587,1741077032810,-500.0,0.00010998,2]
[355353588,1741077032820,-981.89,0.00010998,2]
[355353589,1741077032829,-1265.23,0.00010998,2]
[355353590,1741077032839,-786.34,0.00010998,2]
[355353591,1741077032848,-500.0,0.00010998,2]
[355353592,1741077032857,-500.0,0.00010998,2]
[355353593,1741077032866,-783.54,0.00010998,2]
[355353594,1741077032876,-842.03,0.00010998,2]
[355353595,1741077032885,-1601.58,0.00010998,2]
[355353596,1741077032894,-709.66,0.00010998,2]
[355353597,1741077032904,-738.37,0.00010998,2]
[355353598,1741077032913,-680.7,0.00010998,2]
[355353599,1741077032922,-500.0,0.00010998,2]
[355353600,1741077032931,-1367.67,0.00010998,2]
[355353601,1741077032941,-1473.2,0.00010998,2]
[355353602,1741077032951,-1799.71,0.00010998,2]
[355353604,1741077032961,-1475.68,0.00010998,2]
[355353605,1741077032970,-500.0,0.00010998,2]
[355353607,1741077032981,-749.94,0.00010998,2]
[355353609,1741077032990,-500.0,0.00010998,2]
[355353611,1741077033000,-702.8,0.00010998,2]
[355353613,1741077033010,-735.34,0.00010998,2]
[355353615,1741077033019,-504.57,0.00010998,2]
[355353617,1741077033029,-1254.92,0.00010998,2]
[355353619,1741077033038,-1045.88,0.00010998,2]
[355353621,1741077033048,-696.55,0.00010998,2]
[355353623,1741077033058,-503.81144075,0.00010998,2]
[355353625,1741077033068,-96.80812403,0.00010998,2]
[355353627,1741077033081,-1334.32187597,0.00010998,2]
[355353629,1741077033091,-500.0,0.00010998,2]
[355353631,1741077033100,-500.0,0.00010998,2]
[355353633,1741077033109,-777.73,0.00010998,2]
[355353635,1741077033119,-1768.1,0.00010998,2]
[355353637,1741077033129,-500.0,0.00010998,2]
[355353639,1741077033138,-642.58,0.00010998,2]
[355353641,1741077033148,-2868.47,0.00010998,2]
[355353642,1741077033158,-1179.98,0.00010998,2]
[355353644,1741077033167,-500.0,0.00010998,2]
[355353646,1741077033178,-1489.85,0.00010998,2]
[355353648,1741077033188,-811.36,0.00010998,2]
[355353650,1741077033198,-1302.29,0.00010998,2]
[355353652,1741077033210,-500.0,0.00010998,2]
[355353654,1741077033221,-1051.51,0.00010998,2]
[355353656,1741077033230,-2264.32,0.00010998,2]
[355353658,1741077033240,-2254.21,0.00010998,2]
[355353660,1741077033250,-5232.37,0.00010998,2]
[355353662,1741077033260,-500.0,0.00010998,2]
[355353663,1741077033270,-756.42406223,0.00010998,2]
[355353688,1741077033763,-320.77593777,0.00010998,2]
[355353689,1741077033772,-872.48,0.00010998,2]
[355353690,1741077033992,-563.35,0.00010998,2]
[355353691,1741077034002,-341.99756223,0.00010998,2]
[355353692,1741077034015,-158.00243777,0.00010998,2]
[355353693,1741077034025,-17841.98787538,0.00010998,2]
[355353735,1741077039149,-254.71710617,0.00010997,2]
[355353739,1741077039177,-1905.56289383,0.00010997,2]
[355353742,1741077039187,-1610.95,0.00010997,2]
[355353744,1741077039197,-3310.94212462,0.00010998,2]
[355353745,1741077039206,-994.6,0.00010998,2]
[355353747,1741077039217,-419.09347419,0.00010998,2]
[355353750,1741077039228,-200.23652581,0.00010998,2]
[355353752,1741077039238,-504.10287419,0.00010998,2]
[355353754,1741077039250,-4716.3992,0.00010998,2]
[355353756,1741077039262,-1140.06792581,0.00010998,2]
[355353758,1741077039271,-2174.72,0.00010998,2]
[355353760,1741077039280,-500.0,0.00010998,2]
[355353762,1741077039290,-500.0,0.00010998,2]
[355353764,1741077039300,-500.0,0.00010998,2]
[355353766,1741077039309,-4939.27,0.00010998,2]
[355353768,1741077039319,-1581.55,0.00010998,2]
[355353770,1741077039329,-1290.15,0.00010998,2]
[355353772,1741077039339,-500.0,0.00010998,2]
[355353774,1741077039348,-877.3,0.00010998,2]
[355353776,1741077039358,-1748.37,0.00010998,2]
[355353778,1741077039367,-1070.55670973,0.00010998,2]
[355353892,1741077040475,-884.00384928,0.00010998,2]
[355353898,1741077040533,-279.58611013,0.00010998,2]
[355354200,1741077043340,-207.46333086,0.00010998,2]
[355354202,1741077043350,-2389.54,0.00010998,2]
[355354204,1741077043359,-439.3349159,0.00010998,2]
[355354416,1741077045239,-122.1650841,0.00010998,2]
[355354417,1741077045248,-409.4333409,0.00010998,2]
[355354418,1741077045260,-90.5666591,0.00010998,2]
[355354420,1741077045270,-1507.74274202,0.00010998,2]
[355354422,1741077045282,-65.00725798,0.00010998,2]
[355354424,1741077045292,-892.05,0.00010998,2]
[355354426,1741077045303,-1040.55,0.00010998,2]
[355354428,1741077045312,-1873.780753,0.00010998,2]
[355354430,1741077045322,-2556.67,0.00010998,2]
[355354432,1741077045332,-2943.26,0.00010998,2]
[355354434,1741077045342,-3188.4,0.00010998,2]
[355354436,1741077045351,-2454.69,0.00010998,2]
[355354438,1741077045362,-2553.77,0.00010998,2]
[355354441,1741077045371,-1481.08,0.00010998,2]
[355354443,1741077045381,-501.01499409,0.00010998,2]
[355354445,1741077045391,-500.0,0.00010998,2]
[355354447,1741077045401,-500.0,0.00010998,2]
[355354448,1741077045411,-5197.88,0.00010998,2]
[355354451,1741077045421,-1361.16,0.00010998,2]
[355354453,1741077045432,-500.0,0.00010998,2]
[355354455,1741077045441,-577.56,0.00010998,2]
[355354457,1741077045454,-1528.93,0.00010998,2]
[355354459,1741077045463,-500.0,0.00010998,2]
[355354461,1741077045473,-1464.65,0.00010998,2]
[355354463,1741077045483,-1307.006507,0.00010998,2]
[355354465,1741077045493,-515.8,0.00010998,2]
[355354467,1741077045503,-1452.92,0.00010998,2]
[355354469,1741077045513,-6033.59,0.00010998,2]
[355354471,1741077045527,-1036.55,0.00010998,2]
[355354473,1741077045537,-500.0,0.00010998,2]
[355354475,1741077045546,-1150.4,0.00010998,2]
[355354477,1741077045556,-2533.26,0.00010998,2]
[355354479,1741077045566,-2624.18,0.00010998,2]
[355354481,1741077045576,-1108.23,0.00010998,2]
[355354483,1741077045586,-718.78,0.00010998,2]
[355354485,1741077045596,-2012.36,0.00010998,2]
[355354487,1741077045606,-1817.6,0.00010998,2]
[355354490,1741077045626,-500.0,0.00010998,2]
[355354492,1741077045637,-757.5,0.00010998,2]
[355354494,1741077045647,-1762.5,0.00010998,2]
[355354496,1741077045657,-2510.25,0.00010998,2]
[355354498,1741077045667,-2905.9672941,0.00010998,2]
[355354616,1741077046794,-299.68462501,0.00010998,2]
[355354619,1741077046817,-383.90855994,0.00010998,2]
[355354632,1741077046931,-420.72952095,0.00010998,2]
[355354635,1741077046945,-2390.9822368,0.00010998,2]
[355356810,1741077223567,-150.0,0.00010998,3]
[355356811,1741077223924,-150.0,0.00011945,3]
[355356812,1741077231590,-300.0,0.00010361,2]
[355356813,1741077231613,-500.0,0.00010362,2]
[355356814,1741077232571,-221.50462373,0.00010362,2]
[355356815,1741077232648,-800.0,0.00010362,2]
[355356816,1741077233150,-800.0,0.00010362,2]
[355356817,1741077233920,-800.0,0.00010362,2]
[355356818,1741077234260,-800.0,0.00010362,2]
[355356819,1741077234887,-800.0,0.00010362,2]
[355356820,1741077235551,-800.0,0.00010362,2]
[355356821,1741077236292,-800.0,0.00010362,2]
[355356822,1741077237201,-800.0,0.00010362,2]
[355356823,1741077238179,-800.0,0.00010362,2]
[355356824,1741077238680,-800.0,0.00010362,2]
[355356825,1741077239411,-800.0,0.00010362,2]
[355356826,1741077240225,-800.0,0.00010362,2]
[355356827,1741077240975,-350.38201485,0.00012941,10]
[355356828,1741077241072,-800.0,0.00010362,2]
[355356829,1741077241821,-800.0,0.00010362,2]
[355356830,1741077242663,-800.0,0.00010362,2]
[355356831,1741077243803,-800.0,0.00010362,2]
[355356832,1741077244720,-800.0,0.00010362,2]
[355356833,1741077245290,-800.0,0.00010362,2]
[355356834,1741077245623,-800.0,0.00010362,2]
[355356835,1741077274977,-150.0,0.00012648,5]
[355356836,1741077275110,-850.0,0.000136,5]
[355356838,1741077361582,-150.0,0.00010278,7]
[355356839,1741077361606,-291.2191953,0.00010362,2]
[355356840,1741077410076,-245.0,0.00015273,30]
[355356841,1741077410142,-245.0,0.00015669,30]
[355356842,1741077410199,-245.0,0.00016065,30]
[355356843,1741077410482,-245.0,0.0001646,30]
[355356844,1741077410543,-245.0,0.00016856,30]
[355356845,1741077410572,-771.99353494,0.0001689,30]
[355356846,1741077410627,-3.00646506,0.00017252,30]
[355356847,1741077413280,-241.99353494,0.00017252,30]
[355356848,1741077413329,-245.0,0.00017647,30]
[355356849,1741077413358,-1513.00646506,0.00018,30]
[355356850,1741077461660,-2000.0,0.00018,30]
[355356851,1741077471810,-1501.27488494,0.00018,30]
[355356852,1741077489708,-412.53,0.00010362,2]
[355356853,1741077509355,-300.0,0.00010362,2]
[355356854,1741077510474,-300.0,0.00010362,2]
[355356855,1741077511495,-300.0,0.00010362,2]
[355356856,1741077512491,-300.0,0.00010362,2]
[355356857,1741077513465,-300.0,0.00010362,2]
[355356858,1741077514410,-300.0,0.00010362,2]
[355356859,1741077515215,-300.0,0.00010362,2]
[355356860,1741077516077,-300.0,0.00010362,2]
[355356861,1741077520922,-300.0,0.00010362,2]
[355356862,1741077521757,-300.0,0.00010362,2]
[355356863,1741077522459,-300.0,0.00010362,2]
[355356864,1741077542965,-150.0,0.00010362,2]
[355356865,1741077572636,1286.63,0.00010191,2]
[355356866,1741077633399,195.0001492,0.00010287,2]
[355356867,1741077645705,500.0,0.00010234,3]
[355356868,1741077659149,2000.0,0.00010256,2]
[355356869,1741077721226,-300.0,0.00010362,2]
[355356870,1741077725902,644.1,8.239e-05,2]
[355356871,1741077755338,-300.0,0.00010362,2]
[355356872,1741077756656,-300.0,0.00010362,2]
[355356873,1741077757644,-300.0,0.00010362,2]
[355356874,1741077758478,-300.0,0.00010362,2]
[355356875,1741077759307,-300.0,0.00010362,2]
[355356876,1741077760018,-300.0,0.00010362,2]
[355356877,1741077762797,-300.0,0.00010362,2]
[355356878,1741077763809,-300.0,0.00010362,2]
[355356879,1741077784066,-300.0,0.00010362,2]
[355356880,1741077799192,163.37,0.00010106,2]
[355356881,1741077827677,1852.42,0.00010119,2]
[355356883,1741077856230,-150.0,0.00010362,2]
[355356884,1741077897183,200.0,0.00010084,2]
[355356885,1741077918333,-150.0,0.0001031,2]
[355356886,1741077919016,-150.0,0.0001031,2]
[355356887,1741077945560,300.0,0.00010057,2]
[355356888,1741077981213,-150.0,0.0001031,2]
[355356890,1741078002069,196.28,0.00010035,2]
[355356891,1741078014877,603.79,0.00010049,2]
[355356892,1741078022593,305.642393,0.00010284,2]
[355356894,1741078091169,1000.0,0.00010069,2]
[355356900,1741078162697,-150.0,0.00010336,2]
[355356901,1741078162728,-674.74618097,0.00010362,2]
[355356902,1741078162758,-550.0,0.00010375,2]
[355356903,1741078162789,-217.31,0.00010387,2]
[355356904,1741078162818,-5596.10829814,0.00010503,2]
[355356905,1741078162875,-1266.73372333,0.00010503,2]
[355356906,1741078187658,-644.1,0.00010503,2]
[355356907,1741078187688,-150.0,0.00010521,2]
[355356908,1741078187717,-169.83,0.00010549,2]
[355356909,1741078187747,-2291.09619,0.0001089,2]
[355356910,1741078187776,-2291.09619,0.0001089,2]
[355356911,1741078187806,-150.0,0.00010896,2]
[355356912,1741078187836,-427.96752706,0.00010896,2]
[355356913,1741078187866,-664.52832922,0.00010896,2]
[355356914,1741078187894,-568.64420688,0.00010897,2]
[355356915,1741078187926,-729.41579312,0.00010897,2]
[355356916,1741078187954,-1094.88176372,0.00010897,2]
[355356917,1741078204334,15218.46,0.00010274,2]
[355356923,1741078231533,-3108.17123114,0.0001089,2]
[355356924,1741078231542,-550.0,0.00010894,2]
[355356925,1741078231552,-92.055178,0.00010896,2]
[355356926,1741078231694,-207.944822,0.00010896,2]
[355356927,1741078231705,-1921.80823628,0.00010897,2]
[355356928,1741078231714,-19999.99,0.00010897,2]
[355356929,1741078231723,-172.4635181,0.000109,2]
[355356930,1741078231734,-503.27661027,0.00010973,2]
[355356931,1741078231745,-160.21093867,0.00010973,2]
[355356932,1741078231755,-501.43646314,0.00010973,2]
[355356933,1741078231765,-14087.75129368,0.00010987,2]
[355356934,1741078231774,-1993.293,0.00010987,2]
[355356935,1741078231783,-550.85,0.00010995,2]
[355356936,1741078231793,-1430.76,0.00010995,2]
[355356937,1741078231802,-1716.58,0.00010995,2]
[355356938,1741078231812,-500.0,0.00010995,2]
[355356939,1741078231821,-1049.02,0.00010995,2]
[355356940,1741078231831,-166.22579511,0.00010995,3]
[355356941,1741078231841,-25632.31486157,0.00010995,2]
[355356942,1741078235338,-600.0,0.000107,3]
[355356943,1741078235348,-1543.83,0.00010995,2]
[355356944,1741078235357,-9906.1203126,0.00010995,2]
[355356945,1741078235370,-10385.04640668,0.00010995,2]
[355356993,1741078237375,-443.61,0.000108,3]
[355357167,1741078239551,-615.6505,0.000108,3]
[355357172,1741078239718,-100.00533483,0.000108,3]
[355357201,1741078240039,-140.73416517,0.000108,3]
[355357203,1741078240054,-2000.0,0.000109,3]
[355357206,1741078240068,-5801.01763483,0.00010995,2]
[355357209,1741078240085,-254.48682848,0.00010995,2]
[355357232,1741078240299,-411.31082313,0.00010995,2]
[355357448,1741078242471,-1099.45166358,0.00010995,2]
[355357465,1741078242627,-6315.3,0.00010995,2]
[355357807,1741078245830,-427.96752706,0.00010896,2]
[355357809,1741078245841,-110.11085211,0.00010995,2]
[355357811,1741078245853,-1297.55839149,0.00010995,2]
[355357813,1741078245868,-564.88228283,0.00010995,2]
[355357815,1741078245879,-3713.37636062,0.00010995,2]
[355357817,1741078245891,-11089.9652997,0.00010995,2]
[355357819,1741078245903,-109665.00664647,0.00010995,2]
[355357825,1741078245947,-84169.02816119,0.00010995,2]
[355359486,1741078274419,498.72511506,0.00018,30]
[355359487,1741078303151,153.59,0.00010293,2]
[355359495,1741078402892,150.0,0.00010064,7]
[355359499,1741078449233,1003.02,0.00010034,2]
[355359502,1741078688844,227.6974578,9.998e-05,2]
[355359503,1741078688870,528.3325422,9.998e-05,2]
[355359504,1741078819025,1434.93787751,0.00020011,120]
[355359505,1741078822575,167.07,9.96e-05,2]
[355359507,1741078921073,-150.0,0.00010351,2]
[355359508,1741078940941,1006.199,0.0001,2]
[355359510,1741078969173,695.83,8.219e-05,2]
[355359512,1741078983965,-3.59,0.00010351,2]
[355359513,1741078983989,-146.41,0.00010358,2]
[355359516,1741079054983,496.73,9.933e-05,2]
[355359517,1741079061790,200.0,9.933e-05,2]
[355359519,1741079088079,-150.0,0.00010306,2]
[355359520,1741079088104,-3.59,0.00010358,2]
[355359521,1741079088130,-153.59,0.00010409,2]
[355359522,1741079088157,-153.59,0.00010467,2]
[355359523,1741079088183,-235.06,0.00010474,2]
[355359526,1741079187098,289.6,9.95e-05,2]
[355359528,1741079191612,1000.0,9.95e-05,2]
[355359531,1741079370929,-460.77,0.00010474,2]
[355359532,1741079370958,-550.0,0.00010499,2]
[355359533,1741079370986,-150.0,0.00010499,2]
[355359534,1741079371014,-153.59,0.00010525,2]
[355359535,1741079371043,-153.59,0.00010583,2]
[355359536,1741079371070,-153.59,0.0001064,2]
[355359537,1741079371098,-153.59,0.00010698,2]
[355359538,1741079371128,-700.0,0.000107,3]
[355359539,1741079371156,-150.0,0.00010754,2]
[355359540,1741079371184,-480.77,0.00010755,2]
[355359541,1741079371212,-677.28,0.00010755,2]
[355359542,1741079371242,-3186.80243836,0.00010755,2]
[355359543,1741079371281,-1545.48892787,0.00010755,2]
[355359544,1741079375584,6809.88,9.926e-05,2]
[355359545,1741079396014,-7140.29186568,0.00010755,2]
[355359546,1741079396070,-2345.65169522,0.00010755,2]
[355359554,1741079432260,-595.67883046,0.000107,3]
[355359555,1741079432290,-504.32116954,0.000107,3]
[355359556,1741079432300,-300.0,0.00010754,2]
[355359557,1741079432311,-5465.65507287,0.00010755,2]
[355359558,1741079432320,-5503.33,0.00010755,2]
[355359559,1741079432329,-2537.11,0.00010755,2]
[355359560,1741079432341,-153.59,0.00010756,2]
[355359561,1741079432350,-593.0,0.00010795,2]
[355359562,1741079432359,-1400.0,0.000108,3]
[355359563,1741079432369,-2200.0,0.000108,3]
[355359564,1741079432378,-153.59,0.00010814,2]
[355359565,1741079432388,-153.59,0.00010872,2]
[355359566,1741079432397,-969.35501,0.0001089,2]
[355359567,1741079432406,-617.53823067,0.00010894,2]
[355359568,1741079432415,-497.14410736,0.00010894,2]
[355359569,1741079432425,-521.06279994,0.00010894,2]
[355359570,1741079432434,-521.06279993,0.00010895,2]
[355359571,1741079432443,-521.06279993,0.00010896,2]
[355359572,1741079432452,-777.67,0.000109,2]
[355359573,1741079432461,-2100.0,0.000109,3]
[355359574,1741079432470,-172.4635181,0.000109,2]
[355359575,1741079432479,-3300.0,0.000109,3]
[355359576,1741079432488,-153.59,0.0001093,2]
[355359577,1741079432497,-150.0,0.00010959,2]
[355359578,1741079432506,-190.52,0.00010959,2]
[355359579,1741079432515,-500.95753017,0.00010973,2]
[355359580,1741079432524,-500.0,0.00010973,2]
[355359581,1741079432533,-153.59,0.00010988,2]
[355359582,1741079432541,-404.17697157,0.00010993,2]
[355359583,1741079432551,-1407.98,0.00010993,2]
[355359584,1741079432559,-1397.64,0.00010993,2]
[355359585,1741079432569,-1061.02,0.00010993,2]
[355359586,1741079432579,-1694.54,0.00010993,2]
[355359587,1741079432589,-2146.28,0.00010993,2]
[355359588,1741079432599,-3184.25,0.00010993,2]
[355359589,1741079432608,-1772.41,0.00010993,2]
[355359590,1741079432617,-643.44,0.00010993,2]
[355359591,1741079432627,-1487.81,0.00010993,2]
[355359592,1741079432637,-2262.67,0.00010993,2]
[355359593,1741079432646,-2157.31,0.00010993,2]
[355359594,1741079432657,-760.1,0.00010993,2]
[355359595,1741079432666,-1978.32,0.00010993,2]
[355359596,1741079432677,-2708.68,0.00010993,2]
[355359597,1741079432686,-2318.04,0.00010993,2]
[355359598,1741079432695,-1552.26,0.00010993,2]
[355359599,1741079432705,-1248.03,0.00010993,2]
[355359600,1741079432714,-2847.91,0.00010993,2]
[355359601,1741079432723,-539.88,0.00010993,2]
[355359602,1741079432732,-543.14,0.00010993,2]
[355359603,1741079432742,-1198.62,0.00010993,2]
[355359604,1741079432751,-6095.54,0.00010993,2]
[355359605,1741079432760,-500.0,0.00010993,2]
[355359606,1741079432770,-1736.17,0.00010993,2]
[355359607,1741079432779,-656.38,0.00010993,2]
[355359608,1741079432788,-42170.54998992,0.00010993,2]
[355359609,1741079432800,-1649.76790624,0.00010993,2]
[355359610,1741079432811,-837.24311816,0.00010993,2]
[355359611,1741079432838,-31333.37604612,0.00010993,2]
[355359612,1741079432850,-44691.64461242,0.00010993,2]
[355359613,1741079432862,-366.48101014,0.00010993,2]
[355359614,1741079432873,-420.7394915,0.00010993,2]
[355359615,1741079432895,-547.20265525,0.00010993,2]
[355359616,1741079432906,-367280.17753039,0.00010993,2]
[355359617,1741079432916,-1795.706555,0.00010994,2]
[355359618,1741079432926,-1252.547903,0.00010994,2]
[355359619,1741079432935,-183.5592256,0.00010994,2]
[355359620,1741079432945,-500.0,0.00010994,2]
[355359621,1741079432954,-500.0,0.00010994,2]
[355359622,1741079432964,-503.84442259,0.00010994,2]